[Event "*** Titled Tuesday Blitz"]
[Site "Chess.com"]
[Date "2020.05.12"]
[Round "8"]
[White "canary2016"]
[Black "GMJustin"]
[Result "0-1"]
[WhiteElo "1961"]
[BlackElo "2343"]
[TimeControl "180+1"]
[EndTime "11:32:07 PDT"]
[Termination "GMJustin won by checkmate"]

1. Nf3 {[%clk 0:03:00.9]} 1... g6 {[%clk 0:02:49]} 2. g3 {[%clk 0:03:00.4]} 2...
Bg7 {[%clk 0:02:48.6]} 3. Bg2 {[%clk 0:03:00.5]} 3... e5 {[%clk 0:02:48.7]} 4.
d3 {[%clk 0:02:51.8]} 4... d5 {[%clk 0:02:47.9]} 5. O-O {[%clk 0:02:51.2]} 5...
c5 {[%clk 0:02:46.3]} 6. e4 {[%clk 0:02:44.5]} 6... d4 {[%clk 0:02:43.7]} 7. c3
{[%clk 0:02:44.7]} 7... Nc6 {[%clk 0:02:37.3]} 8. Bg5 {[%clk 0:02:43.3]} 8... f6
{[%clk 0:02:32.3]} 9. Bd2 {[%clk 0:02:41.1]} 9... Nge7 {[%clk 0:02:22.2]} 10.
Qb3 {[%clk 0:02:40.5]} 10... Qb6 {[%clk 0:01:36]} 11. Na3 {[%clk 0:02:27.9]}
11... Na5 {[%clk 0:01:23.9]} 12. Qxb6 {[%clk 0:02:26.6]} 12... axb6 {[%clk
0:01:23.9]} 13. Nb5 {[%clk 0:02:25.9]} 13... O-O {[%clk 0:01:01.9]} 14. cxd4
{[%clk 0:02:15.7]} 14... cxd4 {[%clk 0:00:59]} 15. Rac1 {[%clk 0:02:06.6]} 15...
Bd7 {[%clk 0:00:52.7]} 16. Nd6 {[%clk 0:02:02.8]} 16... Nc8 {[%clk 0:00:40.8]}
17. Bxa5 {[%clk 0:01:52]} 17... Rxa5 {[%clk 0:00:32.6]} 18. Nxb7 {[%clk
0:01:51.3]} 18... Rxa2 {[%clk 0:00:32.5]} 19. Rc7 {[%clk 0:01:49.6]} 19... Be6
{[%clk 0:00:29.1]} 20. Rfc1 {[%clk 0:01:45.1]} 20... Rxb2 {[%clk 0:00:24.6]} 21.
R1c6 {[%clk 0:01:44.2]} 21... Rb1+ {[%clk 0:00:23.9]} 22. Bf1 {[%clk 0:01:43.4]}
22... Bh3 {[%clk 0:00:21.4]} 23. Nd2 {[%clk 0:01:43.2]} 23... Rd1 {[%clk
0:00:18.6]} 24. Rc2 {[%clk 0:01:38.6]} 24... Bh6 {[%clk 0:00:18.1]} 25. f4
{[%clk 0:01:31]} 25... exf4 {[%clk 0:00:18.4]} 26. gxf4 {[%clk 0:01:30.1]} 26...
Bxf4 {[%clk 0:00:18]} 27. Rxc8 {[%clk 0:01:16.3]} 27... Rxc8 {[%clk 0:00:16.9]}
28. Rxc8+ {[%clk 0:01:16]} 28... Bxc8 {[%clk 0:00:16.9]} 29. Nc4 {[%clk
0:01:15.9]} 29... Bh3 {[%clk 0:00:16.4]} 30. Kf2 {[%clk 0:01:11.1]} 30... Rxf1+
{[%clk 0:00:16.4]} 31. Ke2 {[%clk 0:01:11.1]} 31... Rh1 {[%clk 0:00:16.6]} 32.
Nxb6 {[%clk 0:01:09]} 32... Bg4+ {[%clk 0:00:16]} 33. Kf2 {[%clk 0:01:07.6]}
33... Rxh2+ {[%clk 0:00:16.2]} 34. Kg1 {[%clk 0:01:07.4]} 34... Rb2 {[%clk
0:00:16.7]} 35. Nd7 {[%clk 0:00:55]} 35... Be3+ {[%clk 0:00:15.5]} 36. Kf1
{[%clk 0:00:52.6]} 36... Bf3 {[%clk 0:00:15.3]} 37. Nxf6+ {[%clk 0:00:51.4]}
37... Kh8 {[%clk 0:00:15.6]} 38. e5 {[%clk 0:00:44.8]} 38... Rb1# {[%clk
0:00:15.8]} 0-1

[Event "*** Titled Tuesday Blitz"]
[Site "Chess.com"]
[Date "2020.05.12"]
[Round "8"]
[White "Belka1989"]
[Black "CuattroPrincesses"]
[Result "1-0"]
[WhiteElo "2130"]
[BlackElo "2262"]
[TimeControl "180+1"]
[EndTime "11:32:07 PDT"]
[Termination "Belka1989 won on time"]

1. e4 {[%clk 0:03:00.9]} 1... c5 {[%clk 0:02:59.2]} 2. Nf3 {[%clk 0:03:01.5]}
2... d6 {[%clk 0:02:59.4]} 3. d4 {[%clk 0:03:01.6]} 3... cxd4 {[%clk 0:03:00.3]}
4. Nxd4 {[%clk 0:03:02.5]} 4... Nf6 {[%clk 0:03:00.4]} 5. f3 {[%clk 0:03:02.2]}
5... a6 {[%clk 0:03:00.7]} 6. c4 {[%clk 0:03:02]} 6... e6 {[%clk 0:02:58]} 7.
Nc3 {[%clk 0:03:01.3]} 7... Be7 {[%clk 0:02:58.3]} 8. Be3 {[%clk 0:03:00.9]}
8... O-O {[%clk 0:02:58.6]} 9. Be2 {[%clk 0:03:00.8]} 9... b6 {[%clk 0:02:58.9]}
10. O-O {[%clk 0:02:59.7]} 10... Bb7 {[%clk 0:02:59.3]} 11. Rb1 {[%clk 0:02:47]}
11... Nbd7 {[%clk 0:02:49.5]} 12. b4 {[%clk 0:02:47.3]} 12... Rc8 {[%clk
0:02:46.5]} 13. Qd2 {[%clk 0:02:46.1]} 13... Qc7 {[%clk 0:02:42.1]} 14. Rfc1
{[%clk 0:02:41.5]} 14... Qb8 {[%clk 0:02:41.2]} 15. Qe1 {[%clk 0:02:38.8]} 15...
Ne5 {[%clk 0:02:26.5]} 16. Na4 {[%clk 0:02:38]} 16... Bd8 {[%clk 0:02:22.6]} 17.
Qf2 {[%clk 0:02:26.8]} 17... Bc7 {[%clk 0:02:14.8]} 18. b5 {[%clk 0:02:21.1]}
18... a5 {[%clk 0:02:06.7]} 19. Nb3 {[%clk 0:02:21]} 19... d5 {[%clk 0:01:44]}
20. exd5 {[%clk 0:02:20.5]} 20... exd5 {[%clk 0:01:43.5]} 21. Bxb6 {[%clk
0:02:21]} 21... Nxc4 {[%clk 0:01:32.4]} 22. g3 {[%clk 0:01:58.4]} 22... Rfe8
{[%clk 0:01:26.1]} 23. Bxc7 {[%clk 0:01:56]} 23... Qxc7 {[%clk 0:01:27]} 24. Nd2
{[%clk 0:01:41.2]} 24... Qe5 {[%clk 0:01:08.6]} 25. Bxc4 {[%clk 0:01:40]} 25...
dxc4 {[%clk 0:01:07.3]} 26. Nxc4 {[%clk 0:01:39]} 26... Qh5 {[%clk 0:01:04.7]}
27. Nd6 {[%clk 0:01:26.9]} 27... Rxc1+ {[%clk 0:00:45.4]} 28. Rxc1 {[%clk
0:01:27.8]} 28... Bxf3 {[%clk 0:00:16.8]} 29. Nxe8 {[%clk 0:01:27.6]} 29... Nxe8
{[%clk 0:00:17.7]} 30. Re1 {[%clk 0:01:15.2]} 30... Nf6 {[%clk 0:00:15.8]} 31.
b6 {[%clk 0:01:15.4]} 31... h6 {[%clk 0:00:14.7]} 32. Nc5 {[%clk 0:01:12.3]}
32... Ng4 {[%clk 0:00:14.3]} 33. Qxf3 {[%clk 0:00:58.5]} 33... Qxc5+ {[%clk
0:00:10.7]} 34. Kg2 {[%clk 0:00:59]} 1-0

[Event "*** Titled Tuesday Blitz"]
[Site "Chess.com"]
[Date "2020.05.12"]
[Round "8"]
[White "Norival"]
[Black "KaterinaMiroshnik"]
[Result "1-0"]
[WhiteElo "2652"]
[BlackElo "2457"]
[TimeControl "180+1"]
[EndTime "11:32:13 PDT"]
[Termination "Norival won by resignation"]

1. d4 {[%clk 0:03:00.9]} 1... d6 {[%clk 0:02:57.7]} 2. e4 {[%clk 0:03:00.7]}
2... Nd7 {[%clk 0:02:57.8]} 3. Nc3 {[%clk 0:03:00.8]} 3... e5 {[%clk 0:02:57.1]}
4. g3 {[%clk 0:03:00.5]} 4... Ngf6 {[%clk 0:02:56.7]} 5. Bg2 {[%clk 0:03:00.7]}
5... Be7 {[%clk 0:02:57]} 6. Nge2 {[%clk 0:03:00.8]} 6... O-O {[%clk 0:02:57.4]}
7. O-O {[%clk 0:03:01.3]} 7... c6 {[%clk 0:02:57]} 8. a4 {[%clk 0:03:00.8]} 8...
Re8 {[%clk 0:02:56.1]} 9. h3 {[%clk 0:03:00.8]} 9... Bf8 {[%clk 0:02:52.2]} 10.
Re1 {[%clk 0:03:00.9]} 10... Qc7 {[%clk 0:02:47.6]} 11. Be3 {[%clk 0:02:48.6]}
11... b6 {[%clk 0:02:45.5]} 12. g4 {[%clk 0:02:44.5]} 12... Kh8 {[%clk
0:02:39.1]} 13. Ng3 {[%clk 0:02:43.9]} 13... Bb7 {[%clk 0:02:36.1]} 14. g5
{[%clk 0:02:41.3]} 14... Ng8 {[%clk 0:02:34.4]} 15. h4 {[%clk 0:02:37.7]} 15...
Rad8 {[%clk 0:02:30.2]} 16. d5 {[%clk 0:02:29.6]} 16... cxd5 {[%clk 0:02:27]}
17. Nxd5 {[%clk 0:02:28.2]} 17... Qb8 {[%clk 0:02:23]} 18. a5 {[%clk 0:02:10.1]}
18... Ne7 {[%clk 0:02:10.9]} 19. axb6 {[%clk 0:02:03]} 19... axb6 {[%clk
0:02:03.1]} 20. Nxb6 {[%clk 0:01:58.5]} 20... Nc5 {[%clk 0:01:56.7]} 21. b4
{[%clk 0:01:29.3]} 21... Ne6 {[%clk 0:01:53]} 22. c4 {[%clk 0:01:26.9]} 22... g6
{[%clk 0:01:48]} 23. Nd5 {[%clk 0:01:25.7]} 23... Nxd5 {[%clk 0:01:42.5]} 24.
exd5 {[%clk 0:01:24.5]} 24... Nc7 {[%clk 0:01:29.6]} 25. Ne4 {[%clk 0:01:22.1]}
25... Bg7 {[%clk 0:01:26]} 26. b5 {[%clk 0:01:21.7]} 26... Bc8 {[%clk
0:01:18.6]} 27. Ra4 {[%clk 0:01:18.1]} 27... Bf5 {[%clk 0:01:13.9]} 28. Qd2
{[%clk 0:01:14.8]} 28... Na8 {[%clk 0:01:02.4]} 29. Ra6 {[%clk 0:01:10.7]} 29...
Bc8 {[%clk 0:00:55.3]} 30. Rc6 {[%clk 0:01:07]} 30... Bb7 {[%clk 0:00:52.3]} 31.
Nc3 {[%clk 0:01:05]} 31... Bxc6 {[%clk 0:00:49.5]} 32. dxc6 {[%clk 0:01:05.9]}
32... Nb6 {[%clk 0:00:47.3]} 33. Bxb6 {[%clk 0:01:03.9]} 33... Qxb6 {[%clk
0:00:46.2]} 34. Nd5 {[%clk 0:01:04.5]} 34... Qc5 {[%clk 0:00:45.9]} 35. c7
{[%clk 0:00:59.3]} 35... Rc8 {[%clk 0:00:39.5]} 36. b6 {[%clk 0:00:59]} 36...
Qxc4 {[%clk 0:00:35]} 37. Rc1 {[%clk 0:00:53.1]} 37... Qa6 {[%clk 0:00:34.5]}
38. Qb4 {[%clk 0:00:48.5]} 38... Qb7 {[%clk 0:00:30.6]} 39. Nf6 {[%clk
0:00:45.7]} 39... Bxf6 {[%clk 0:00:27.2]} 40. Bxb7 {[%clk 0:00:44.9]} 1-0

[Event "*** Titled Tuesday Blitz"]
[Site "Chess.com"]
[Date "2020.05.12"]
[Round "8"]
[White "Zmeeed63"]
[Black "Oligan22"]
[Result "0-1"]
[WhiteElo "2195"]
[BlackElo "2387"]
[TimeControl "180+1"]
[EndTime "11:32:15 PDT"]
[Termination "Oligan22 won by resignation"]

1. d4 {[%clk 0:02:51.3]} 1... d5 {[%clk 0:02:59]} 2. c4 {[%clk 0:02:47.4]} 2...
dxc4 {[%clk 0:02:59.9]} 3. e3 {[%clk 0:02:43.5]} 3... Nf6 {[%clk 0:02:58.2]} 4.
Bxc4 {[%clk 0:02:38.6]} 4... a6 {[%clk 0:02:58.3]} 5. Nf3 {[%clk 0:02:30.9]}
5... e6 {[%clk 0:02:49.1]} 6. O-O {[%clk 0:02:28.4]} 6... c5 {[%clk 0:02:49]} 7.
e4 {[%clk 0:02:25.9]} 7... cxd4 {[%clk 0:02:42]} 8. e5 {[%clk 0:02:25.7]} 8...
Nfd7 {[%clk 0:02:41.1]} 9. Qxd4 {[%clk 0:02:24]} 9... Nc6 {[%clk 0:02:40.7]} 10.
Qf4 {[%clk 0:02:19.8]} 10... Qc7 {[%clk 0:02:37.4]} 11. Qg3 {[%clk 0:02:19.7]}
11... Ndxe5 {[%clk 0:02:30.9]} 12. Bf4 {[%clk 0:02:17.7]} 12... Nxf3+ {[%clk
0:02:29.9]} 13. gxf3 {[%clk 0:02:12.3]} 13... Qa5 {[%clk 0:02:03.4]} 14. Rd1
{[%clk 0:01:43]} 14... h5 {[%clk 0:01:31.8]} 15. Bd6 {[%clk 0:01:17.2]} 15...
Bxd6 {[%clk 0:01:27]} 16. Qxd6 {[%clk 0:01:18.1]} 16... Qg5+ {[%clk 0:01:25.9]}
17. Kh1 {[%clk 0:01:17.4]} 17... Qe7 {[%clk 0:01:26.4]} 18. Qg3 {[%clk
0:01:04.4]} 18... O-O {[%clk 0:01:25.2]} 19. Rg1 {[%clk 0:01:04.2]} 19... Qf6
{[%clk 0:01:21.2]} 20. Nc3 {[%clk 0:01:03.5]} 20... h4 {[%clk 0:01:15.3]} 21.
Qg2 {[%clk 0:00:54]} 21... Ne5 {[%clk 0:01:14.1]} 22. Ne4 {[%clk 0:00:17.4]}
22... Qxf3 {[%clk 0:01:08.1]} 23. Qxf3 {[%clk 0:00:17.5]} 23... Nxf3 {[%clk
0:01:09]} 24. Nf6+ {[%clk 0:00:18.4]} 24... Kh8 {[%clk 0:01:08.9]} 25. Rg4
{[%clk 0:00:19.3]} 25... gxf6 {[%clk 0:01:08.3]} 26. Rf4 {[%clk 0:00:19.4]}
26... Ne5 {[%clk 0:01:02.8]} 27. Rg1 {[%clk 0:00:17.1]} 27... Ng6 {[%clk
0:01:03]} 28. Rxf6 {[%clk 0:00:16.9]} 28... Kg7 {[%clk 0:01:02.6]} 29. Rf4
{[%clk 0:00:16.3]} 29... Rh8 {[%clk 0:00:58.5]} 30. Bd3 {[%clk 0:00:16]} 30...
e5 {[%clk 0:00:53.8]} 31. Rc4 {[%clk 0:00:14.5]} 31... Be6 {[%clk 0:00:51.6]}
32. Rc7 {[%clk 0:00:14.3]} 32... Bd5+ {[%clk 0:00:50.7]} 0-1

[Event "*** Titled Tuesday Blitz"]
[Site "Chess.com"]
[Date "2020.05.12"]
[Round "8"]
[White "realmadridtv"]
[Black "Dinamo81"]
[Result "1/2-1/2"]
[WhiteElo "2464"]
[BlackElo "2610"]
[TimeControl "180+1"]
[EndTime "11:32:18 PDT"]
[Termination "Game drawn by repetition"]

1. d4 {[%clk 0:03:00.9]} 1... d5 {[%clk 0:02:58.1]} 2. c4 {[%clk 0:03:01.1]}
2... e6 {[%clk 0:02:56.6]} 3. g3 {[%clk 0:03:01.2]} 3... a6 {[%clk 0:02:55.2]}
4. Nd2 {[%clk 0:02:54]} 4... c5 {[%clk 0:02:34.1]} 5. Bg2 {[%clk 0:02:46.7]}
5... Nf6 {[%clk 0:02:30.9]} 6. Ngf3 {[%clk 0:02:43.6]} 6... Nc6 {[%clk
0:02:30.1]} 7. dxc5 {[%clk 0:02:34.2]} 7... Bxc5 {[%clk 0:02:28.2]} 8. O-O
{[%clk 0:02:34]} 8... O-O {[%clk 0:02:27.1]} 9. a3 {[%clk 0:02:29.4]} 9... Re8
{[%clk 0:02:13.5]} 10. b4 {[%clk 0:02:28.2]} 10... Bf8 {[%clk 0:02:13.3]} 11.
Bb2 {[%clk 0:02:28.1]} 11... a5 {[%clk 0:01:42]} 12. b5 {[%clk 0:02:21.6]} 12...
Nb8 {[%clk 0:01:42]} 13. Ne5 {[%clk 0:02:14.5]} 13... Nbd7 {[%clk 0:01:40.4]}
14. Ndf3 {[%clk 0:02:08.8]} 14... Nc5 {[%clk 0:01:31.3]} 15. Qc2 {[%clk
0:02:01.3]} 15... Nfe4 {[%clk 0:01:25.5]} 16. Rad1 {[%clk 0:01:58.6]} 16... f6
{[%clk 0:01:13.6]} 17. Nd3 {[%clk 0:01:56.4]} 17... Qb6 {[%clk 0:00:39.7]} 18.
cxd5 {[%clk 0:01:47.7]} 18... exd5 {[%clk 0:00:38]} 19. a4 {[%clk 0:01:43.7]}
19... Nxd3 {[%clk 0:00:35.2]} 20. Rxd3 {[%clk 0:01:35.5]} 20... Be6 {[%clk
0:00:34.7]} 21. Nd4 {[%clk 0:01:34.1]} 21... Rac8 {[%clk 0:00:34.2]} 22. Qb3
{[%clk 0:01:33.2]} 22... Nc5 {[%clk 0:00:33.7]} 23. Qa2 {[%clk 0:01:32.9]} 23...
Nxd3 {[%clk 0:00:32.3]} 24. Nxe6 {[%clk 0:01:31.3]} 24... Nb4 {[%clk 0:00:31.8]}
25. Bxd5 {[%clk 0:01:17.7]} 25... Nxa2 {[%clk 0:00:30.4]} 26. Nd8+ {[%clk
0:01:09.5]} 26... Kh8 {[%clk 0:00:25]} 27. Nf7+ {[%clk 0:01:08.8]} 27... Kg8
{[%clk 0:00:24.8]} 28. Nd8+ {[%clk 0:01:06.7]} 28... Kh8 {[%clk 0:00:17.7]} 29.
Nf7+ {[%clk 0:00:29.3]} 29... Kg8 {[%clk 0:00:17.1]} 30. Nh6+ {[%clk 0:00:28.6]}
30... Kh8 {[%clk 0:00:17]} 31. Nf7+ {[%clk 0:00:29.2]} 1/2-1/2

[Event "*** Titled Tuesday Blitz"]
[Site "Chess.com"]
[Date "2020.05.12"]
[Round "8"]
[White "Meri-Arabidze"]
[Black "Grandelicious"]
[Result "0-1"]
[WhiteElo "2586"]
[BlackElo "2745"]
[TimeControl "180+1"]
[EndTime "11:32:20 PDT"]
[Termination "Grandelicious won by resignation"]

1. d4 {[%clk 0:03:00.9]} 1... Nf6 {[%clk 0:02:59]} 2. c4 {[%clk 0:03:00.9]} 2...
e6 {[%clk 0:02:59.3]} 3. Nf3 {[%clk 0:03:01]} 3... a6 {[%clk 0:02:59.6]} 4. Nc3
{[%clk 0:02:58.9]} 4... d5 {[%clk 0:02:59.1]} 5. cxd5 {[%clk 0:02:56.9]} 5...
exd5 {[%clk 0:03:00]} 6. Bf4 {[%clk 0:02:56.2]} 6... Bd6 {[%clk 0:02:58.6]} 7.
Bg3 {[%clk 0:02:56.3]} 7... O-O {[%clk 0:02:56.2]} 8. e3 {[%clk 0:02:56.5]} 8...
Bg4 {[%clk 0:02:53.1]} 9. Bd3 {[%clk 0:02:55.5]} 9... Re8 {[%clk 0:02:45.7]} 10.
Qc2 {[%clk 0:02:54]} 10... Nc6 {[%clk 0:02:32.7]} 11. Be2 {[%clk 0:02:29.9]}
11... Nb4 {[%clk 0:02:16.4]} 12. Qd1 {[%clk 0:02:22.5]} 12... Ne4 {[%clk
0:02:12.9]} 13. a3 {[%clk 0:02:16.5]} 13... Nxc3 {[%clk 0:02:05.5]} 14. bxc3
{[%clk 0:02:16.5]} 14... Nc6 {[%clk 0:02:06.1]} 15. O-O {[%clk 0:01:48.6]} 15...
Na5 {[%clk 0:02:02.8]} 16. Ne5 {[%clk 0:01:36.7]} 16... Bxe2 {[%clk 0:02:02]}
17. Qxe2 {[%clk 0:01:37.6]} 17... Bxe5 {[%clk 0:02:00.9]} 18. dxe5 {[%clk
0:01:36.1]} 18... Qe7 {[%clk 0:01:44.5]} 19. f4 {[%clk 0:01:35.8]} 19... Rad8
{[%clk 0:01:42.9]} 20. f5 {[%clk 0:01:33.4]} 20... Nc4 {[%clk 0:01:36.3]} 21. f6
{[%clk 0:01:28.6]} 21... Qe6 {[%clk 0:01:21.4]} 22. fxg7 {[%clk 0:01:18.9]}
22... Nxe5 {[%clk 0:01:21.2]} 23. Bh4 {[%clk 0:01:13]} 23... Rd6 {[%clk
0:01:17.3]} 24. Bf6 {[%clk 0:00:49.8]} 24... Qg4 {[%clk 0:01:10.2]} 25. Qf2
{[%clk 0:00:33.9]} 25... Nd3 {[%clk 0:01:05.4]} 26. Qc2 {[%clk 0:00:33.4]} 26...
Rxe3 {[%clk 0:01:02.7]} 27. h3 {[%clk 0:00:27]} 27... Qe4 {[%clk 0:00:59.2]} 28.
Qd1 {[%clk 0:00:12.3]} 28... Re2 {[%clk 0:00:57.4]} 29. Rf3 {[%clk 0:00:12.5]}
29... Rxf6 {[%clk 0:00:57.3]} 30. Qxd3 {[%clk 0:00:12.8]} 30... Rxf3 {[%clk
0:00:56.7]} 31. Qxf3 {[%clk 0:00:10.8]} 31... Qxf3 {[%clk 0:00:56.2]} 32. gxf3
{[%clk 0:00:11.1]} 32... Kxg7 {[%clk 0:00:56.8]} 33. Rb1 {[%clk 0:00:08.9]}
33... b6 {[%clk 0:00:57.2]} 34. Rd1 {[%clk 0:00:09.1]} 34... c6 {[%clk
0:00:56.6]} 35. a4 {[%clk 0:00:08.4]} 35... Re3 {[%clk 0:00:55.4]} 36. c4 {[%clk
0:00:05.7]} 36... dxc4 {[%clk 0:00:54.9]} 37. Rd6 {[%clk 0:00:06.1]} 37... Re6
{[%clk 0:00:55]} 0-1

[Event "*** Titled Tuesday Blitz"]
[Site "Chess.com"]
[Date "2020.05.12"]
[Round "8"]
[White "Korchmar_Vasiliy"]
[Black "Konavets"]
[Result "0-1"]
[WhiteElo "2640"]
[BlackElo "2934"]
[TimeControl "180+1"]
[EndTime "11:32:22 PDT"]
[Termination "Konavets won on time"]

1. d4 {[%clk 0:03:00.9]} 1... f5 {[%clk 0:02:59]} 2. Nf3 {[%clk 0:03:00.6]} 2...
g6 {[%clk 0:02:38.2]} 3. g3 {[%clk 0:03:00.7]} 3... Nf6 {[%clk 0:02:37.3]} 4.
Bg2 {[%clk 0:03:01.1]} 4... Bg7 {[%clk 0:02:38.2]} 5. O-O {[%clk 0:03:01.9]}
5... O-O {[%clk 0:02:18.1]} 6. c4 {[%clk 0:03:02.8]} 6... d6 {[%clk 0:02:18]} 7.
Nc3 {[%clk 0:03:03.2]} 7... Nc6 {[%clk 0:02:18.2]} 8. d5 {[%clk 0:03:00.4]} 8...
Ne5 {[%clk 0:02:18.6]} 9. Nxe5 {[%clk 0:02:59.5]} 9... dxe5 {[%clk 0:02:19.5]}
10. b3 {[%clk 0:02:48.2]} 10... h6 {[%clk 0:02:17.6]} 11. Bb2 {[%clk 0:02:48.2]}
11... g5 {[%clk 0:02:16.4]} 12. Qc2 {[%clk 0:02:32.1]} 12... Qe8 {[%clk
0:02:15.9]} 13. Nb5 {[%clk 0:02:29.4]} 13... Qh5 {[%clk 0:02:06.1]} 14. Nxc7
{[%clk 0:02:25.3]} 14... f4 {[%clk 0:02:06.4]} 15. Ne6 {[%clk 0:02:10.4]} 15...
Bxe6 {[%clk 0:02:03.7]} 16. dxe6 {[%clk 0:02:11.3]} 16... g4 {[%clk 0:02:03.7]}
17. Bxb7 {[%clk 0:02:06.2]} 17... f3 {[%clk 0:02:01.9]} 18. exf3 {[%clk
0:01:35.2]} 18... gxf3 {[%clk 0:02:02.8]} 19. Rfe1 {[%clk 0:01:02.7]} 19... Rab8
{[%clk 0:02:01.9]} 20. Rxe5 {[%clk 0:01:00.8]} 20... Qg4 {[%clk 0:01:54.5]} 21.
h3 {[%clk 0:00:37]} 21... Qxh3 {[%clk 0:01:54]} 22. Bxf3 {[%clk 0:00:37.1]}
22... Ng4 {[%clk 0:01:53.1]} 23. Bxg4 {[%clk 0:00:36.2]} 23... Qxg4 {[%clk
0:01:54]} 24. Re4 {[%clk 0:00:32.7]} 24... Qg6 {[%clk 0:01:53.9]} 25. Bxg7
{[%clk 0:00:31.8]} 25... Kxg7 {[%clk 0:01:54.8]} 26. Qc3+ {[%clk 0:00:29.8]}
26... Kh7 {[%clk 0:01:54.6]} 27. Qe3 {[%clk 0:00:22.2]} 27... Rf6 {[%clk
0:01:49.5]} 28. Rd1 {[%clk 0:00:22.1]} 28... Rbf8 {[%clk 0:01:49.3]} 29. Rd2
{[%clk 0:00:22.5]} 29... Rf3 {[%clk 0:01:48.4]} 30. Qd4 {[%clk 0:00:16.7]} 30...
h5 {[%clk 0:01:41.5]} 31. Rh4 {[%clk 0:00:10.4]} 31... R8f5 {[%clk 0:01:38.4]}
32. Qe4 {[%clk 0:00:04.8]} 32... Kg7 {[%clk 0:01:32.9]} 33. b4 {[%clk 0:00:05]}
33... Qg5 {[%clk 0:01:31.9]} 34. Qd4+ {[%clk 0:00:03.8]} 34... Kh7 {[%clk
0:01:31.3]} 35. c5 {[%clk 0:00:04]} 35... Re5 {[%clk 0:01:27.2]} 36. Kg2 {[%clk
0:00:02.8]} 36... Ree3 {[%clk 0:01:21.1]} 37. Rxh5+ {[%clk 0:00:01.4]} 37...
Qxh5 {[%clk 0:01:20.3]} 38. fxe3 {[%clk 0:00:01.9]} 38... Kg8 {[%clk 0:01:02.8]}
39. Qh4 {[%clk 0:00:02.2]} 39... Qf5 {[%clk 0:00:59.8]} 40. Re2 {[%clk
0:00:01.6]} 40... Rf1 {[%clk 0:00:59]} 0-1

[Event "*** Titled Tuesday Blitz"]
[Site "Chess.com"]
[Date "2020.05.12"]
[Round "8"]
[White "sergiochess83"]
[Black "Arjun2002"]
[Result "1-0"]
[WhiteElo "2823"]
[BlackElo "2668"]
[TimeControl "180+1"]
[EndTime "11:32:23 PDT"]
[Termination "sergiochess83 won by resignation"]

1. e4 {[%clk 0:03:00.9]} 1... c5 {[%clk 0:02:58.7]} 2. Nf3 {[%clk 0:03:00.6]}
2... Nc6 {[%clk 0:02:58.5]} 3. Bb5 {[%clk 0:02:57]} 3... e6 {[%clk 0:02:58.6]}
4. Bxc6 {[%clk 0:02:56.3]} 4... bxc6 {[%clk 0:02:59.5]} 5. d3 {[%clk 0:02:56.5]}
5... Ne7 {[%clk 0:02:57.1]} 6. Qe2 {[%clk 0:02:55.9]} 6... d6 {[%clk 0:02:51.3]}
7. e5 {[%clk 0:02:51]} 7... Nf5 {[%clk 0:02:51.3]} 8. exd6 {[%clk 0:02:41.6]}
8... Bxd6 {[%clk 0:02:50.2]} 9. Nc3 {[%clk 0:02:39.4]} 9... O-O {[%clk
0:02:39.9]} 10. O-O {[%clk 0:02:30]} 10... Nd4 {[%clk 0:02:31.2]} 11. Qd1 {[%clk
0:02:20.3]} 11... e5 {[%clk 0:02:17.5]} 12. Nd2 {[%clk 0:02:20.4]} 12... f5
{[%clk 0:02:05.3]} 13. f3 {[%clk 0:02:20.1]} 13... Be6 {[%clk 0:02:03.6]} 14.
Nc4 {[%clk 0:02:19.3]} 14... Bc7 {[%clk 0:02:00.6]} 15. Be3 {[%clk 0:02:16.3]}
15... Qf6 {[%clk 0:01:57.4]} 16. b3 {[%clk 0:02:09.6]} 16... Rad8 {[%clk
0:01:55.3]} 17. Qd2 {[%clk 0:02:05.7]} 17... Qg6 {[%clk 0:01:49.8]} 18. Qf2
{[%clk 0:02:01.5]} 18... Bd5 {[%clk 0:01:34.1]} 19. Kh1 {[%clk 0:01:53.6]} 19...
e4 {[%clk 0:01:23.9]} 20. f4 {[%clk 0:01:41.7]} 20... exd3 {[%clk 0:01:17.3]}
21. cxd3 {[%clk 0:01:42]} 21... Rfe8 {[%clk 0:01:00.8]} 22. Nxd5 {[%clk
0:00:56.8]} 22... cxd5 {[%clk 0:00:57.6]} 23. Ne5 {[%clk 0:00:56.3]} 23... Bxe5
{[%clk 0:00:56.9]} 24. fxe5 {[%clk 0:00:57.2]} 24... Ne6 {[%clk 0:00:40.2]} 25.
Bxc5 {[%clk 0:00:53.3]} 25... d4 {[%clk 0:00:39.1]} 26. Bd6 {[%clk 0:00:51.1]}
26... f4 {[%clk 0:00:37.5]} 27. Qf3 {[%clk 0:00:48.7]} 27... Rc8 {[%clk
0:00:37.7]} 28. Rac1 {[%clk 0:00:47.5]} 28... Rc3 {[%clk 0:00:29.8]} 29. Rxc3
{[%clk 0:00:44.6]} 29... dxc3 {[%clk 0:00:30.7]} 30. Qc6 {[%clk 0:00:45.1]}
30... c2 {[%clk 0:00:13.4]} 31. Qxc2 {[%clk 0:00:43.7]} 31... f3 {[%clk
0:00:13.7]} 32. Rxf3 {[%clk 0:00:42.7]} 32... Qh5 {[%clk 0:00:10.8]} 33. Qc4
{[%clk 0:00:41.6]} 33... Kh8 {[%clk 0:00:10.3]} 34. Qxe6 {[%clk 0:00:37.8]} 1-0

[Event "*** Titled Tuesday Blitz"]
[Site "Chess.com"]
[Date "2020.05.12"]
[Round "8"]
[White "vladimir_petrov"]
[Black "ehrenfeld"]
[Result "0-1"]
[WhiteElo "2313"]
[BlackElo "2493"]
[TimeControl "180+1"]
[EndTime "11:32:23 PDT"]
[Termination "ehrenfeld won by resignation"]

1. e4 {[%clk 0:03:00.9]} 1... e5 {[%clk 0:02:59]} 2. Nf3 {[%clk 0:03:00.2]} 2...
Nc6 {[%clk 0:02:59.1]} 3. Nc3 {[%clk 0:03:00.2]} 3... Nf6 {[%clk 0:02:58.6]} 4.
d4 {[%clk 0:03:00.3]} 4... exd4 {[%clk 0:02:57.5]} 5. Nxd4 {[%clk 0:03:01.2]}
5... Bc5 {[%clk 0:02:56.8]} 6. Be3 {[%clk 0:03:00]} 6... Bb6 {[%clk 0:02:54.7]}
7. Nxc6 {[%clk 0:03:00.1]} 7... bxc6 {[%clk 0:02:54]} 8. e5 {[%clk 0:02:53.1]}
8... Bxe3 {[%clk 0:02:49.5]} 9. fxe3 {[%clk 0:02:54]} 9... Nd5 {[%clk
0:02:47.1]} 10. Nxd5 {[%clk 0:02:53.7]} 10... cxd5 {[%clk 0:02:43.7]} 11. Qd4
{[%clk 0:02:54.2]} 11... O-O {[%clk 0:02:39.1]} 12. O-O-O {[%clk 0:02:52.4]}
12... Qe7 {[%clk 0:02:13.8]} 13. Qxd5 {[%clk 0:02:47.4]} 13... Rb8 {[%clk
0:02:11]} 14. Bc4 {[%clk 0:02:39.8]} 14... Bb7 {[%clk 0:02:04.9]} 15. Qxd7
{[%clk 0:02:31.6]} 15... Qxe5 {[%clk 0:02:04.6]} 16. Rhf1 {[%clk 0:02:04.5]}
16... Bxg2 {[%clk 0:01:44]} 17. Rxf7 {[%clk 0:01:24.4]} 17... Qxb2+ {[%clk
0:01:40.3]} 18. Kd2 {[%clk 0:01:23.4]} 18... Qb4+ {[%clk 0:00:24.7]} 19. Kc1
{[%clk 0:01:10.4]} 19... Qb2+ {[%clk 0:00:23.6]} 20. Kd2 {[%clk 0:01:10.4]}
20... Qb4+ {[%clk 0:00:23.7]} 21. c3 {[%clk 0:01:09.6]} 21... Qb2+ {[%clk
0:00:21]} 22. Ke1 {[%clk 0:00:40.5]} 22... Qxc3+ {[%clk 0:00:19.3]} 23. Kf2
{[%clk 0:00:20.6]} 23... Qxc4 {[%clk 0:00:17.9]} 24. Rxf8+ {[%clk 0:00:10.9]}
24... Rxf8+ {[%clk 0:00:16.8]} 25. Kxg2 {[%clk 0:00:11.2]} 25... Qe2+ {[%clk
0:00:14.8]} 0-1